bitfinex-derivatives/quotes_BTCF0:USTF0_20251202
["timestamp","ask_amount","ask_price","bid_price","bid_amount"]
[1764692541636,0.02556104,90470.0,90469.0,0.53657]
[1764692544237,0.02556104,90470.0,90450.0,0.1559054]
[1764692544238,0.02556104,90470.0,90450.0,0.14485]
[1764692544442,0.3608,90456.0,90455.0,0.53657]
[1764692544646,0.38536104,90456.0,90455.0,0.53657]
[1764692545034,0.02456104,90456.0,90455.0,0.53657]
[1764692545640,0.38536104,90456.0,90455.0,0.53657]
[1764692545842,0.38536104,90456.0,90455.0,0.53757]
[1764692546346,0.02456104,90456.0,90455.0,0.53757]
[1764692547035,0.02456104,90456.0,90455.0,0.89937]
[1764692547243,0.00012109,90477.0,90455.0,0.89937]
[1764692547244,0.07947474,90474.0,90465.0,0.14485]
[1764692547432,0.07947474,90474.0,90473.0,0.53657]
[1764692547635,0.00012109,90477.0,90476.0,0.53657]
[1764692547841,0.00012109,90477.0,90476.0,0.51157]
[1764692548436,0.00012109,90477.0,90471.0,0.3608]
[1764692548437,0.00016572,90479.0,90478.0,0.53657]
[1764692548843,0.3608,90487.0,90486.0,0.53657]
[1764692549142,0.44027474,90492.0,90491.0,0.27636]
[1764692549349,0.0110505,90491.0,90480.0,0.14485]
[1764692549642,7.967e-05,90490.0,90489.0,0.53657]
[1764692550046,7.967e-05,90490.0,90489.0,0.26021]
[1764692550237,0.0110517,90482.0,90480.0,0.14501581]
[1764692550432,0.3608,90481.0,90480.0,0.14501581]
[1764692550643,0.3608,90481.0,90480.0,0.00016581]
[1764692551139,0.3608,90481.0,90456.0,0.31112]
[1764692551440,0.3608,90481.0,90461.0,0.3608]
[1764692551646,0.3608,90481.0,90480.0,0.40506]
[1764692551841,0.3608,90481.0,90480.0,0.68142]
[1764692552237,0.3638,90481.0,90480.0,0.68142]
[1764692552440,0.3638,90481.0,90480.0,0.14485]
[1764692552641,0.3638,90481.0,90450.0,0.15579622]
[1764692552642,0.0110535,90466.0,90450.0,0.14485]
[1764692552946,0.3609159,90466.0,90465.0,0.68565]
[1764692553147,0.3609159,90466.0,90465.0,0.40506]
[1764692553743,0.7217159,90466.0,90465.0,0.68565]
[1764692554444,0.7217159,90466.0,90465.0,0.40506]
[1764692554643,0.3609159,90466.0,90465.0,0.70874]
[1764692555440,0.3719694,90466.0,90465.0,0.70874]
[1764692555645,0.3609159,90466.0,90451.0,0.3608]
[1764692555952,0.3608,90452.0,90451.0,0.59558]
[1764692556447,0.3608,90452.0,90446.0,0.00027641]
[1764692556448,0.0110558,90447.0,90446.0,1e-08]
[1764692556636,0.0110596,90416.0,90415.0,0.08714508]
[1764692556836,0.38413514,90430.0,90410.0,0.00965238]
[1764692557047,0.0110595,90418.0,90410.0,0.00965238]
[1764692557237,0.00016581,90425.0,90411.0,9.445e-05]
[1764692557437,0.0110591,90421.0,90411.0,9.445e-05]
[1764692557653,0.3608,90412.0,90411.0,0.29199445]
[1764692558146,0.3608,90412.0,90411.0,0.59567445]
[1764692558355,0.3608881,90420.0,90419.0,0.59558]
[1764692559344,0.38707151,90420.0,90419.0,0.59558]
[1764692559747,0.00016581,90425.0,90424.0,0.59558]
[1764692559944,0.00016581,90425.0,90424.0,0.59567445]
[1764692560445,0.60419581,90425.0,90424.0,9.445e-05]
[1764692560650,0.00025218,90425.0,90424.0,9.445e-05]
[1764692560945,0.00025218,90425.0,90424.0,0.59567445]
[1764692561255,0.07962501,90435.0,90434.0,0.59558]
[1764692561547,0.07962501,90440.0,90439.0,0.59558]
[1764692561748,0.07962501,90440.0,90439.0,0.59567445]
[1764692561948,0.07962501,90441.0,90440.0,0.76637]
[1764692562152,0.07962501,90442.0,90441.0,0.59558]
[1764692562448,0.0110559,90447.0,90446.0,0.59558]
[1764692562651,0.01113597,90447.0,90440.0,0.17079]
[1764692562844,0.01113597,90447.0,90440.0,0.76637]
[1764692562845,0.07965004,90442.0,90440.0,0.76637]
[1764692563045,8.007e-05,90447.0,90440.0,0.76637]
[1764692563046,8.007e-05,90447.0,90441.0,0.29199445]
[1764692563248,0.07965061,90442.0,90441.0,0.29199445]
[1764692563452,0.07965061,90443.0,90442.0,0.59558]
[1764692563653,8.007e-05,90447.0,90443.0,0.59558]
[1764692563853,8.007e-05,90447.0,90446.0,0.2919]
[1764692564048,0.07972549,90447.0,90446.0,0.2919]
[1764692564350,8.007e-05,90447.0,90446.0,0.59558]
[1764692564745,8.007e-05,90447.0,90446.0,0.59858]
[1764692565350,8.007e-05,90447.0,90446.0,0.59958]
[1764692566050,8.007e-05,90447.0,90446.0,0.61061121]
[1764692566351,8.007e-05,90447.0,90446.0,0.59958]
[1764692567357,8.007e-05,90447.0,90446.0,0.59967445]
[1764692568453,8.007e-05,90447.0,90446.0,0.00409445]
[1764692568454,0.31602587,90447.0,90446.0,0.00409445]
[1764692568755,0.61516587,90447.0,90446.0,0.00409445]
[1764692568945,0.01113587,90447.0,90446.0,0.29599445]
[1764692569345,0.09078129,90447.0,90446.0,0.29599445]
[1764692569546,8.007e-05,90447.0,90446.0,0.29599445]
[1764692569958,8.007e-05,90447.0,90446.0,0.59967445]
[1764692570153,0.60411007,90447.0,90446.0,0.00409445]
[1764692570359,0.30497007,90447.0,90446.0,0.29599445]
[1764692570552,0.68375549,90447.0,90446.0,0.00409445]
[1764692571055,0.60411007,90447.0,90446.0,0.004]
[1764692571857,0.62975516,90447.0,90446.0,0.004]
[1764692572247,0.62975516,90447.0,90446.0,0.00409445]
[1764692572453,0.02572516,90447.0,90446.0,0.00409445]
[1764692572658,0.02572516,90447.0,90446.0,0.59967445]
[1764692572954,0.62975516,90447.0,90446.0,0.004]
[1764692573150,0.33061516,90447.0,90446.0,0.29599445]
[1764692573459,0.62975516,90447.0,90446.0,0.00409445]
[1764692573755,0.10537191,90447.0,90446.0,0.59967445]
[1764692573955,0.02572516,90447.0,90446.0,0.59967445]
[1764692576656,0.02572516,90447.0,90446.0,0.61073035]
[1764692576854,0.02572516,90447.0,90446.0,0.59967445]
[1764692580364,0.03678096,90447.0,90446.0,0.59967445]
[1764692580659,0.03678096,90447.0,90446.0,0.00409445]
[1764692580660,1.00161096,90447.0,90446.0,0.00409445]
[1764692581051,0.011057,90437.0,90414.0,0.3608]
[1764692581353,0.011056,90446.0,90423.0,0.59584036]
[1764692581354,0.05974095,90430.0,90423.0,0.59584036]
[1764692581654,1.60529969,90429.0,90425.0,0.59558]
[1764692581855,0.02561706,90428.0,90416.0,0.17079]
[1764692582058,0.0110592,90419.0,90418.0,0.00026036]
[1764692582259,0.62964706,90419.0,90418.0,0.00026036]
[1764692582460,0.32475706,90419.0,90418.0,0.00026036]
[1764692582757,0.02561706,90419.0,90418.0,0.56404036]
[1764692584061,0.02561706,90419.0,90418.0,0.56604036]
[1764692584861,0.02661706,90419.0,90418.0,0.57204036]
[1764692585457,0.02661706,90419.0,90418.0,0.58309976]
[1764692586966,0.02661706,90419.0,90418.0,0.57204036]
[1764692587462,0.02661706,90419.0,90418.0,0.93284036]
[1764692588263,0.60204706,90419.0,90418.0,0.36906036]
[1764692588466,0.60204706,90419.0,90418.0,0.00826036]
[1764692588662,0.02661706,90419.0,90418.0,0.57586036]
[1764692589461,0.02661706,90419.0,90418.0,0.58691976]
[1764692589662,0.02661706,90419.0,90418.0,0.57586036]
[1764692589972,0.60204706,90419.0,90418.0,0.30398036]
[1764692590159,0.60204706,90419.0,90418.0,0.008]
[1764692590462,0.60204706,90419.0,90418.0,0.00826036]
[1764692590865,0.02661706,90419.0,90418.0,0.57586036]
[1764692591371,0.60204706,90419.0,90418.0,0.00826036]
[1764692591669,0.96284706,90419.0,90418.0,0.008]
[1764692592066,0.96284706,90419.0,90418.0,0.007879]
[1764692593259,0.02661706,90419.0,90418.0,0.57386036]
[1764692593467,0.02661706,90419.0,90418.0,0.57586036]
[1764692593871,0.02661706,90419.0,90418.0,0.58691976]
[1764692594174,0.02561706,90419.0,90418.0,0.56786036]
[1764692594368,0.02661706,90419.0,90418.0,0.57486036]
[1764692594872,0.02561706,90419.0,90418.0,0.56886036]
[1764692595073,0.02561706,90419.0,90418.0,0.57086036]
[1764692597066,0.46608804,90419.0,90418.0,0.57086036]
[1764692597267,1.04151804,90419.0,90418.0,0.00326036]
[1764692597570,0.96184706,90419.0,90418.0,0.00326036]
[1764692597765,0.96184706,90419.0,90410.0,0.00965238]
[1764692597766,0.57543,90411.0,90410.0,0.00965238]
[1764692597972,0.97290726,90411.0,90410.0,0.00965238]
[1764692598677,0.5864907,90407.0,90389.0,0.69035]
[1764692598970,0.02572018,90407.0,90389.0,0.73839]
[1764692599179,0.02572018,90407.0,90390.0,0.5676]
[1764692599180,0.0110627,90391.0,90390.0,0.5676]
[1764692599377,0.03667976,90391.0,90390.0,0.5676]
[1764692600574,0.32158976,90391.0,90390.0,0.5696]
[1764692601077,0.03667976,90391.0,90390.0,0.5696]
[1764692601977,0.03667976,90391.0,90390.0,0.5716]
[1764692602274,0.02561706,90391.0,90390.0,0.5716]
[1764692602577,0.60104706,90391.0,90390.0,0.29872]
[1764692602879,0.02561706,90391.0,90390.0,0.5706]
[1764692603081,0.09073977,90403.0,90402.0,0.74842]
[1764692603376,0.51956,90409.0,90404.0,0.5676]
[1764692603377,0.07967857,90406.0,90404.0,0.5676]
[1764692603565,0.0110625,90392.0,90391.0,0.5676]
[1764692603765,0.57543,90391.0,90390.0,0.003]
[1764692603976,0.57553854,90391.0,90390.0,0.003]
[1764692604370,0.57553854,90391.0,90390.0,0.29872]
[1764692604570,0.00010854,90391.0,90390.0,0.5706]
[1764692604771,0.01117124,90391.0,90390.0,0.5706]
[1764692605172,0.00010854,90391.0,90390.0,0.5676]
[1764692605373,0.28501854,90391.0,90390.0,0.5676]
[1764692606170,0.28501854,90391.0,90390.0,0.5696]
[1764692606477,0.57553854,90391.0,90390.0,0.003]
[1764692606869,0.57553854,90391.0,90370.0,0.56771312]
[1764692606870,0.5864951,90371.0,90370.0,0.56771312]
[1764692607182,0.2960965,90371.0,90370.0,0.56771312]
[1764692607377,0.6568965,90371.0,90370.0,0.56771312]
[1764692607590,0.9474165,90371.0,90370.0,0.00011312]
[1764692607971,1.00720106,90371.0,90370.0,0.00011312]
[1764692608178,0.6568965,90371.0,90370.0,0.56771312]
[1764692608481,0.43277082,90371.0,90370.0,0.57271312]
[1764692608676,0.07196976,90371.0,90370.0,0.57271312]
[1764692608879,0.06090466,90371.0,90370.0,0.57471312]
[1764692609078,0.0011214,90371.0,90370.0,0.57471312]
[1764692609278,0.99713466,90371.0,90370.0,0.00711312]
[1764692609582,0.9373514,90371.0,90370.0,0.00711312]
[1764692611369,0.5864971,90355.0,90351.0,0.0398272]
[1764692611574,0.0110674,90352.0,90351.0,0.5676]
[1764692611782,0.2959774,90352.0,90351.0,0.5676]
[1764692612079,0.0110674,90352.0,90351.0,0.5676]
[1764692612272,0.01117196,90352.0,90351.0,0.5676]
[1764692612473,0.01117196,90352.0,90351.0,0.6074272]
[1764692612673,0.00010456,90352.0,90351.0,0.6074272]
[1764692612885,0.00010456,90352.0,90351.0,0.5696]
[1764692613579,0.00010456,90352.0,90351.0,0.9314]
[1764692613777,0.07985533,90361.0,90359.0,0.52774]
[1764692613975,0.000166,90361.0,90360.0,0.88854]
[1764692614784,0.00029795,90361.0,90360.0,0.88854]
[1764692615378,0.3608,90376.0,90372.0,0.52774]
[1764692615379,0.09910879,90374.0,90372.0,0.52774]
[1764692615572,0.09910879,90374.0,90373.0,0.52774]
[1764692615879,0.3608,90384.0,90378.0,0.52774]
[1764692615880,0.2886041,90379.0,90378.0,0.52774]
[1764692616279,0.0110652,90370.0,90369.0,0.52774]
[1764692616472,9.362e-05,90370.0,90369.0,0.52774]
[1764692616672,9.362e-05,90370.0,90369.0,0.88854]
[1764692616983,0.01115882,90370.0,90369.0,0.88854]
[1764692617177,0.01115882,90370.0,90369.0,0.52774]
[1764692617776,0.56190882,90370.0,90369.0,0.26263]
[1764692618081,0.01115882,90370.0,90369.0,0.52774]
[1764692618484,0.01315882,90370.0,90369.0,0.52774]
[1764692618894,0.011066,90364.0,90363.0,0.42]
[1764692619182,0.011066,90364.0,90363.0,0.68511]
[1764692619582,0.55075,90361.0,90360.0,0.000166]
[1764692619786,0.011066,90364.0,90363.0,0.68511]
[1764692620089,0.91155,90365.0,90364.0,0.26263]
[1764692620893,0.561816,90364.0,90363.0,0.001]
[1764692621189,0.290606,90364.0,90363.0,0.68611]
[1764692621486,0.013066,90364.0,90363.0,0.68611]
[1764692621887,0.011066,90364.0,90363.0,0.68611]
[1764692622093,0.002,90365.0,90364.0,0.52774]
[1764692622482,0.27754,90365.0,90364.0,0.52774]
[1764692622792,0.55075,90365.0,90364.0,0.52774]
[1764692623185,0.27754,90365.0,90364.0,0.52774]
[1764692623491,0.561816,90364.0,90363.0,0.001]
[1764692623887,0.561816,90364.0,90360.0,0.000166]
[1764692623888,0.55075,90361.0,90360.0,0.000166]
[1764692625581,0.55375,90361.0,90360.0,0.001166]
[1764692626486,0.003,90361.0,90360.0,0.528906]
[1764692627190,0.003,90361.0,90360.0,0.889706]
[1764692629484,0.0110657,90367.0,90366.0,0.52774]
[1764692631298,0.0150657,90367.0,90366.0,0.52874]
[1764692637195,0.0947823,90367.0,90366.0,0.52874]
[1764692638404,0.0837166,90367.0,90366.0,0.52874]
[1764692638613,0.0150656,90367.0,90366.0,0.52874]
[1764692638898,0.09964301,90377.0,90366.0,0.52874]
[1764692638899,0.011064,90380.0,90378.0,0.52774]
[1764692639798,0.00026703,90379.0,90378.0,0.52774]
[1764692641102,0.00426703,90379.0,90378.0,0.52874]
[1764692641406,0.09900286,90388.0,90378.0,0.5388043]
[1764692641599,0.3608,90393.0,90387.0,0.68511]
[1764692641806,0.3718624,90393.0,90392.0,0.52774]
[1764692642002,0.3608,90401.0,90398.0,0.15737]
[1764692642208,0.13875231,90404.0,90403.0,0.52774]
[1764692642396,0.0110609,90406.0,90405.0,0.52774]
[1764692643208,0.5146409,90406.0,90405.0,0.52774]
[1764692643906,0.0110609,90406.0,90405.0,0.52774]
[1764692644308,0.0120609,90406.0,90405.0,0.52774]
[1764692644800,0.3608,90408.0,90407.0,0.48891]
[1764692645293,0.000166,90413.0,90412.0,0.48891]
[1764692645804,0.0110586,90425.0,90421.0,0.48891]
[1764692648105,0.3618,90422.0,90421.0,0.48891]
[1764692648703,0.3608,90422.0,90421.0,0.48891]
[1764692649102,0.011058,90429.0,90420.0,0.15678]
[1764692649305,0.07966608,90421.0,90420.0,0.64569]
[1764692649803,0.3608,90430.0,90420.0,0.15678]
[1764692650112,0.13875231,90443.0,90420.0,0.15678]
[1764692650113,0.0110542,90460.0,90457.0,0.48891]
[1764692650405,0.0110542,90460.0,90459.0,0.7216]
[1764692650406,0.50358,90460.0,90459.0,0.7216]
[1764692650801,0.50358,90447.0,90446.0,0.3608]
[1764692651108,0.50358,90438.0,90437.0,0.00016591]
[1764692651307,0.86438,90438.0,90437.0,0.00016591]
[1764692653107,0.24891,90438.0,90437.0,0.48907591]
[1764692653312,0.60315433,90438.0,90437.0,0.48907591]
[1764692653502,0.24891,90438.0,90437.0,0.48907591]
[1764692653702,0.50358,90438.0,90437.0,0.00016591]
[1764692653901,0.50358,90438.0,90437.0,0.24899591]
[1764692654102,0.50358,90438.0,90437.0,0.00016591]
[1764692654514,0.50458,90438.0,90437.0,0.00016591]
[1764692655106,0.5146378,90431.0,90422.0,0.3608]
[1764692655312,0.50358,90406.0,90405.0,0.27862034]
[1764692655608,0.50358,90400.0,90398.0,0.02979034]
[1764692655810,0.50358,90399.0,90398.0,0.02979034]
[1764692656013,0.5146418,90398.0,90397.0,0.00626094]
[1764692656203,0.24891,90390.0,90389.0,0.3608]
[1764692656399,0.50358,90390.0,90389.0,0.60963]
[1764692656906,0.0110625,90393.0,90389.0,0.84971]
[1764692657105,0.50358,90390.0,90389.0,0.3608]
[1764692657810,0.50358,90390.0,90389.0,0.60963]
[1764692658315,0.50358,90390.0,90379.0,0.05973153]
[1764692658316,0.0110641,90379.0,90378.0,0.0398272]
[1764692658503,0.2599744,90377.0,90376.0,0.0398272]
[1764692658707,0.2599744,90377.0,90370.0,0.00010644]
[1764692658708,0.50358,90371.0,90370.0,0.00010644]
[1764692659212,0.50358,90371.0,90370.0,0.03989356]
[1764692659412,0.50358,90371.0,90370.0,0.00010644]
[1764692659816,0.15314,90376.0,90370.0,0.00010644]
[1764692659817,0.15314,90376.0,90375.0,0.24883]
[1764692660007,0.65672,90376.0,90375.0,0.48891]
[1764692661012,0.2599749,90373.0,90372.0,0.0596743]
[1764692661200,0.5146449,90373.0,90372.0,0.0596743]
[1764692661806,0.50358,90371.0,90370.0,0.00010644]
[1764692662108,0.58329508,90371.0,90370.0,0.00010644]
[1764692662615,0.0110649,90373.0,90370.0,0.86088164]
[1764692662616,0.07971508,90373.0,90370.0,0.86088164]
[1764692662820,0.24891,90379.0,90378.0,0.24883]
[1764692663114,0.50358,90371.0,90370.0,0.36090644]
[1764692663806,0.0907791,90374.0,90373.0,0.48891]
[1764692664621,0.0797143,90375.0,90373.0,0.48891]
[1764692664924,0.0797143,90375.0,90370.0,0.36090644]
[1764692664925,0.0797143,90378.0,90376.0,0.48891]
[1764692665107,0.0797143,90378.0,90370.0,0.36090644]
[1764692665108,0.07988021,90380.0,90379.0,0.48891]
[1764692665308,0.00016591,90380.0,90379.0,0.48891]
[1764692665902,0.50374591,90380.0,90379.0,0.48891]
[1764692666105,0.50358,90378.0,90377.0,0.3608]
[1764692666607,0.5146451,90371.0,90370.0,0.84981644]
[1764692666806,0.5146451,90371.0,90370.0,0.36090644]
[1764692667012,0.5146451,90371.0,90370.0,0.60973644]
[1764692667211,0.0797132,90375.0,90370.0,0.84981644]
[1764692667414,0.1642045,90376.0,90375.0,0.48891]
[1764692667614,0.0797132,90378.0,90377.0,0.48891]
[1764692667816,0.09094321,90380.0,90377.0,0.48891]
[1764692668120,0.09094321,90380.0,90379.0,0.84971]
[1764692668314,0.01123001,90380.0,90379.0,0.84971]
[1764692668618,0.00016591,90380.0,90379.0,0.84971]
[1764692669015,0.07987078,90380.0,90379.0,0.84971]
[1764692669213,0.00016591,90380.0,90379.0,0.84971]
[1764692669421,0.00016591,90380.0,90379.0,0.85171]
[1764692669818,0.01122991,90380.0,90379.0,0.85171]
[1764692670117,0.51480991,90380.0,90379.0,0.85271]
[1764692670322,0.51480991,90380.0,90379.0,0.003]
[1764692670619,0.5146451,90371.0,90370.0,0.36090644]
[1764692670919,0.59435864,90371.0,90370.0,0.36090644]
[1764692671110,0.5146451,90371.0,90370.0,0.36090644]
[1764692672611,0.5156451,90371.0,90370.0,0.36090644]
[1764692673512,0.8764451,90371.0,90370.0,0.00010644]
[1764692676223,0.97601943,90371.0,90370.0,0.00010644]
[1764692676613,0.5978062,90362.0,90352.0,0.3608]
[1764692677707,0.59791264,90362.0,90352.0,0.3608]
[1764692678816,0.5978073,90353.0,90352.0,0.3608]
[1764692679120,0.65760378,90353.0,90352.0,0.3608]
[1764692679813,0.3608,90355.0,90341.0,0.94199]
[1764692680118,0.011068,90348.0,90347.0,0.58119]
[1764692680307,0.05979829,90354.0,90353.0,0.58119]
[1764692680514,0.05979829,90355.0,90354.0,0.58119]
[1764692680720,0.05979829,90355.0,90354.0,0.59849152]
[1764692680915,0.05979829,90356.0,90355.0,0.5922571]
[1764692681219,0.05979829,90359.0,90358.0,0.58119]
[1764692681523,0.05979829,90359.0,90358.0,0.59849152]
[1764692681713,0.05979829,90360.0,90359.0,0.5922566]
[1764692682030,0.06007073,90362.0,90361.0,0.58119]
[1764692682320,0.00027244,90362.0,90361.0,0.95929152]
[1764692682516,0.05979829,90364.0,90363.0,0.58119]
[1764692682722,0.07972569,90377.0,90376.0,0.58119]
[1764692683028,0.07972569,90381.0,90380.0,0.58119]
[1764692683211,0.09078949,90382.0,90380.0,0.58119]
[1764692683406,0.07972569,90382.0,90381.0,0.58119]
[1764692683718,0.07972569,90382.0,90376.0,0.3718644]
[1764692683719,0.07972569,90384.0,90383.0,0.58119]
[1764692683923,0.0110636,90383.0,90381.0,0.3608]
[1764692684217,0.0110636,90383.0,90382.0,0.58119]
[1764692684424,0.67752929,90383.0,90381.0,0.3608]
[1764692684725,0.58674,90382.0,90381.0,0.3608]
[1764692685320,0.58674,90382.0,90381.0,0.3628]
[1764692685911,0.58874,90382.0,90381.0,0.3608]
[1764692687020,0.58874,90382.0,90381.0,0.94199]
[1764692687021,0.66844647,90382.0,90381.0,0.94199]
[1764692687225,0.08170647,90382.0,90381.0,0.94199]
[1764692687525,0.002,90382.0,90381.0,0.94199]
[1764692687914,0.001,90382.0,90381.0,0.94199]
[1764692688119,0.001,90382.0,90381.0,0.94399]
[1764692688326,0.09957433,90386.0,90385.0,0.58119]
[1764692688727,0.38080025,90386.0,90385.0,0.58119]
[1764692688924,0.66644025,90386.0,90385.0,0.58119]
[1764692689224,0.58674,90386.0,90385.0,0.58119]
[1764692689413,0.3011,90386.0,90385.0,0.58119]
[1764692689617,0.5978038,90382.0,90381.0,0.002]
[1764692690524,0.5978049,90373.0,90372.0,0.000166]
[1764692691818,0.5978049,90373.0,90372.0,0.001166]
[1764692693236,0.5978049,90373.0,90372.0,0.000166]
[1764692693527,0.5978049,90373.0,90372.0,0.001166]
[1764692694634,0.69737923,90373.0,90372.0,0.001166]
[1764692694826,0.5978067,90358.0,90357.0,0.122]
[1764692695130,0.5978076,90351.0,90350.0,0.70319]
[1764692695329,0.5978076,90351.0,90350.0,0.72049182]
[1764692695520,0.5978076,90351.0,90350.0,0.13930182]
[1764692696017,0.58674,90351.0,90350.0,0.13930182]
[1764692696221,0.58674,90351.0,90350.0,0.122]
[1764692696417,0.58674,90351.0,90350.0,0.13930188]
[1764692697121,0.58674,90351.0,90350.0,0.02030188]
[1764692697639,0.58674,90351.0,90350.0,0.60149188]
[1764692697814,0.0110675,90352.0,90351.0,0.29873]
[1764692698021,0.3121672,90354.0,90353.0,0.58119]
[1764692698220,0.5978072,90354.0,90353.0,0.01730188]
[1764692698417,0.5978076,90351.0,90350.0,0.003]
[1764692698625,0.5978076,90351.0,90350.0,0.02030272]
[1764692698829,0.5978076,90351.0,90350.0,0.003]
[1764692699430,0.0110687,90342.0,90341.0,0.000166]
[1764692699630,0.18525,90348.0,90341.0,0.29993002]
[1764692699827,0.58674,90345.0,90344.0,0.65953]
[1764692700033,0.58674,90345.0,90344.0,0.95929402]
[1764692700232,0.58674,90345.0,90344.0,0.31603402]
[1764692700424,0.94754,90345.0,90344.0,0.01730402]
[1764692700631,0.58674,90342.0,90341.0,0.581356]
[1764692700925,0.85187813,90360.0,90359.0,0.58119]
[1764692701236,0.5978083,90345.0,90344.0,0.29873]
[1764692701429,0.18525,90348.0,90341.0,0.002166]
[1764692701430,0.5978087,90342.0,90341.0,0.002166]
[1764692701635,0.5978087,90342.0,90341.0,0.01946987]
[1764692702339,0.5978087,90342.0,90341.0,0.01746987]
[1764692703038,0.5978087,90342.0,90341.0,0.01946987]
[1764692703233,0.9586087,90342.0,90341.0,0.01946987]
[1764692703726,0.56137,90330.0,90329.0,0.63725]
[1764692703923,0.5724401,90330.0,90329.0,0.3608]
[1764692704532,0.56137,90330.0,90329.0,0.63725]
[1764692704736,0.23597276,90336.0,90335.0,0.5552795]
[1764692704932,0.05979276,90338.0,90337.0,0.54421]
[1764692705243,0.000166,90339.0,90338.0,0.54421]
[1764692706128,0.05979276,90347.0,90346.0,0.54421]
[1764692706326,0.09957433,90365.0,90346.0,0.54421]
[1764692706327,0.05846094,90351.0,90346.0,0.90501]
[1764692706527,0.07973442,90369.0,90367.0,0.4567056]
[1764692706741,0.07973442,90369.0,90360.0,0.07965]
[1764692706742,0.07973442,90378.0,90377.0,0.44564]
[1764692707036,0.07973442,90379.0,90378.0,0.44564]
[1764692707332,0.000166,90388.0,90381.0,0.44564]
[1764692707538,3.3e-07,90394.0,90393.0,0.0867]
[1764692707836,0.13946071,90409.0,90405.0,0.0867]
[1764692708041,0.13946071,90409.0,90405.0,0.4475]
[1764692708241,0.0110583,90427.0,90414.0,0.0867]
[1764692708242,0.13946071,90415.0,90414.0,0.0867]
[1764692708542,0.13946071,90418.0,90417.0,0.0867]
[1764692708730,0.13946071,90418.0,90417.0,0.4585595]
[1764692709036,0.0709583,90449.0,90420.0,0.04318]
[1764692709242,0.0709583,90449.0,90440.0,0.7216]
[1764692709424,0.0110533,90468.0,90440.0,1.641]
[1764692709738,0.0110533,90468.0,90445.0,0.7216]
[1764692710037,0.00016591,90455.0,90445.0,0.7216]
[1764692710342,0.00016591,90455.0,90445.0,1.25134593]
[1764692710632,0.00016591,90455.0,90445.0,1.65134593]
[1764692711230,0.00016591,90455.0,90454.0,0.3608]
[1764692711735,0.56153591,90455.0,90454.0,0.3608]
[1764692712039,0.3608,90491.0,90459.0,0.0110542]
[1764692712240,0.0110508,90489.0,90472.0,0.3608]
[1764692712535,0.56137,90468.0,90467.0,0.5192]
[1764692712740,0.53698,90482.0,90467.0,0.5192]
[1764692712932,0.1872316,90482.0,90472.0,0.3608]
[1764692713131,0.56137,90473.0,90472.0,0.3608]
[1764692713329,0.28038,90473.0,90472.0,0.3608]
[1764692713640,0.28038,90473.0,90468.0,0.00016581]
[1764692713641,0.56137,90473.0,90468.0,0.00016581]
[1764692714138,0.17618,90482.0,90468.0,0.00016581]
[1764692714554,0.17618,90482.0,90474.0,0.3608]
[1764692715033,0.0004421,90486.0,90474.0,0.3608]
[1764692715241,0.56137,90483.0,90482.0,0.3608]
[1764692715839,0.0004421,90486.0,90482.0,0.3608]
[1764692716348,0.56137,90483.0,90482.0,0.3608]
[1764692716548,0.56537,90483.0,90482.0,0.3618]
[1764692717048,0.0004421,90486.0,90482.0,0.3608]
[1764692717244,0.56137,90483.0,90482.0,0.3618]
[1764692717940,0.56137,90483.0,90482.0,0.001]
[1764692717941,0.5734214,90483.0,90482.0,0.001]
[1764692718242,0.56237,90483.0,90482.0,0.001]
[1764692719547,0.1872316,90482.0,90468.0,0.00016581]
[1764692719746,0.56137,90473.0,90472.0,0.3718528]
[1764692719945,0.17618,90482.0,90472.0,0.3718528]
[1764692719946,0.07962548,90478.0,90477.0,0.0110522]
[1764692720241,0.07962548,90478.0,90476.0,0.0110523]
[1764692720446,0.56137,90477.0,90472.0,0.3608]
[1764692720647,0.28038,90474.0,90473.0,0.0110526]
[1764692722053,0.28138,90474.0,90473.0,0.0110526]
[1764692722548,0.28138,90474.0,90472.0,0.3608]
[1764692722549,0.55169,90473.0,90472.0,0.3608]
[1764692722852,0.001,90474.0,90472.0,0.40204091]
[1764692723045,0.001,90474.0,90473.0,0.03018661]
[1764692723751,0.28759,90474.0,90473.0,0.03018661]
[1764692724352,0.5589,90474.0,90473.0,0.03018661]
[1764692724656,0.5609,90474.0,90473.0,0.03018661]
[1764692725154,0.5619,90474.0,90473.0,0.03018661]
[1764692725453,0.5619,90474.0,90473.0,0.54898661]
[1764692726455,0.62161291,90474.0,90473.0,0.54898661]
[1764692726648,0.62161291,90474.0,90473.0,0.03018661]
[1764692726850,0.5589,90469.0,90468.0,0.00016581]
[1764692727050,0.61861775,90469.0,90468.0,0.03034449]
[1764692727248,0.5589,90469.0,90468.0,0.03034449]
[1764692727660,0.5589,90469.0,90468.0,0.00016581]
[1764692727956,0.99932548,90469.0,90468.0,0.00016581]
[1764692728148,0.9207,90469.0,90468.0,0.00016581]
[1764692728346,0.5699548,90455.0,90454.0,0.3608]
[1764692728553,0.629682,90455.0,90454.0,0.03018893]
[1764692728751,0.5589,90446.0,90445.0,0.0408507]
[1764692728951,0.5589,90446.0,90445.0,0.07106587]
[1764692730555,0.5589,90444.0,90443.0,0.36093648]
[1764692730757,0.5589,90444.0,90443.0,0.42094281]
[1764692731148,0.5589,90444.0,90443.0,0.03032475]
[1764692731348,0.5589,90439.0,90438.0,2.81e-06]
[1764692731562,0.5589,90437.0,90436.0,0.00016581]
[1764692732263,0.5589,90437.0,90436.0,0.01122301]
[1764692732463,0.5589841,90437.0,90436.0,0.01122301]
[1764692733756,0.5589841,90437.0,90436.0,0.00016581]
[1764692733957,0.5589841,90437.0,90436.0,0.00116581]
[1764692734857,0.5589841,90437.0,90436.0,0.00016581]
[1764692735060,0.5589841,90437.0,90436.0,0.00116581]
[1764692736462,0.55456,90429.0,90428.0,0.03975728]
[1764692736763,0.5656181,90428.0,90427.0,0.03975728]
[1764692736953,0.5656185,90425.0,90423.0,0.03975728]
[1764692737158,0.55456,90424.0,90423.0,0.03975728]
[1764692737356,0.5656217,90399.0,90398.0,4.81e-06]
[1764692737554,0.55456,90394.0,90389.0,0.00016591]
[1764692739162,0.55456,90372.0,90371.0,0.09888869]
[1764692739467,0.3608,90379.0,90375.0,0.55477]
[1764692739662,0.3608,90379.0,90364.0,0.09888869]
[1764692739663,0.72295,90376.0,90364.0,0.09888869]
[1764692739969,0.3608,90371.0,90370.0,0.27968]